Workbook

Sheet StartHere
B2: Student Identification Sheet (version5.2)
B4: Name | C4: Dallan Delgado | D4: <<- enter your name here | G4: (1) | H4: Add your name to Cell C4 and your Student ID to cell C6. Then Click [Start Here] to finish loading data.
G5: (2) | H5: Change the file name to include your name.
B6: Student ID | C6: 002-46-2565 | D6: <<- enter your Student ID here | G6: (3) | H6: When done with your work, Click [I'm Done]
G7: (3) | H7: Upload the file to the applicable iCollege
B8: Date/time | C8: =NOW() -> 2021-03-12T23:13:18.330 | H8: assignment folder to receive credit for this workshop/tutorial
C9: Spring 2021 | G9: (4) | H9: Never use a file created or started by another student (that is academic dishonesty). All text, codes, writing, data entry, formulas, configuration and instructions must be performed by the individual submitting the work.
C10: You must use Excel Desktop. Cloud Excel 365 will not work for this class. | E10: 2021-03-10T13:45:02.740 | F10: Dallan Delgado started S01
C12: Collaboration Started
C14: Individual Challenge started
C15: Kurt Schmitz © 2020 Do not post or reproduce.
B17: Excel release | C17: =INFO("release") -> 16.46 | D17: << Mac Users below 16.24, please update!
B18: OS | C18: =INFO("OSVERSION") -> Macintosh (Intel) Version 11.0.1 (Build 20B29) | D18: << Windows users with version 16.0 are good to go.

Sheet 5.ID (hidden)
A1: Do Not Alter or Delete this Worksheet or you submission cannot be graded! | E1: DirVer
A2: Action | B2: Name | C2: Panther ID | D2: Date/Time | E2: S01
A3: Start S01 | B3: Dallan Delgado | C3: 002-46-2565 | D3: 2021-03-12T23:13:18.310 | E3: Dallan Delgado
A4: Start S01 | B4: Dallan Delgado | C4: 002-46-2565 | D4: 2021-03-12T18:42:19.450
A5: Start S01 | B5: Dallan Delgado | C5: 002-46-2565 | D5: 2021-03-10T13:45:02.730 | E5: Welcome to Microsoft Excel version 16.46 build 212 running on Macintosh (Intel) Version 11.0.1 (Build 20B29)!
A6: Starter Sheet | B6: None | C6: 0 | D6: 2020-01-01 | E6: S01
E7: Tom
E8: C:\Users\Tom\AppData\Local\Temp
E9: Welcome to Microsoft Excel version 16.0 build 13628 running on Windows (32-bit) NT 10.00!
E10: S01
E11: Dallan Delgado
E13: Welcome to Microsoft Excel version 16.46 build 212 running on Macintosh (Intel) Version 11.0.1 (Build 20B29)!

Sheet Financial information
A1: Donut Information | Z1: Spring 2021
A2: Based on the below data, create the profit model for Donuts to Go. | Z2: Dallan Delgado
A3: Assume that each customer will buy one donut and one cup of coffee
F5: Enter totals
B6: Time period | E6: Fixed Costs
A7: Revenue: Cup of Coffee | C7: 4 | E7: Varible Costs
A8: Revenue: Donut | C8: 3.5 | E8: Coffee | F8: =C7 -> 4
A9: Donut ingredients per donunt) | B9: per donut | C9: 0.5 | E9: Donut | F9: =C8 -> 3.5
A10: paper products: napkins, plates etc
A11: Insurance | B11: month | C11: 200
A13: Maintenance & Repairs to equipment | B13: month | C13: 0
A14: Marketing & Promotion: Advertising | B14: month | C14: 50
A15: Coffee | B15: per cup | C15: 0.25
A16: Coffee cups | B16: per cup | C16: 0.1
A17: Payroll: Wages (Owner/ Manager) | B17: month | C17: 2500
A18: Payroll: Wages (per Employees) | B18: month | C18: 1000
A19: Donut and Coffee equipment rent | B19: month | C19: 500
A20: Professional Fees: Accounting | B20: month | C20: 50
A21: Professional Fees: Legal | B21: month | C21: 25
A22: Powdered and Liquid Beverages | C22: 0
A23: Rent | B23: month | C23: 1000
A24: Previous research expense for Donuts advancements | C24: 1500
A25: Supplies: Office | B25: month | C25: 25
A26: Utilities | B26: month | C26: 200
A30: Additional Data
A31: Monthly Production | B31: Lost Sales | C31: Day old revenue | D31: High demand, % above Average | E31: Low Demand, % below average
A32: 4000 | B32: 3 | C32: 1.25 | D32: 0.22 | E32: 0.26
A33: Franchise
A34: Monthly Fixed Expense increase | B34: 7000
A35: Monthly Production Increase | B35: 0.32
A36: Monthly demand increase | B36: 0.24
A37: States of Natures | B37: probabilities
A38: High demand | B38: 0.2
A39: Average demand | B39: 0.55
A40: Low demand | B40: 0.25
A64: Total

Sheet SI and regression Pt 1
A1: Month | B1: Demand | C1: Yearly average | D1: Seasonal Index | E1: Average SI | F1: Deseasonalized | G1: Time period | J1: Regression Output
A2: 2018-01-01 | B2: 2475 | D2: =B2/$C$13 -> 0.809220206 | E2: =(D2+D14+D26)/3 -> 0.7232173544 | F2: =B2/E2 -> 3422.207702 | G2: 1 | I2: CLICK CELL J2 as output cell for regression | J2: SUMMARY OUTPUT
A3: 2018-02-01 | B3: 2665.5 | D3: =B3/$C$13 -> 0.87150564 | E3: =(D3+D15+D27)/3 -> 0.8692443158 | F3: =B3/E3 -> 3066.456636 | G3: 2
A4: 2018-03-01 | B4: 3597.5 | D4: 1.176230178 | E4: 0.9454447905 | F4: 3805.087337 | G4: 3 | J4: Regression Statistics
A5: 2018-04-01 | B5: 3104 | D5: 1.014876573 | E5: 0.9824600021 | F5: 3159.416153 | G5: 4 | J5: Multiple R | K5: 0.5947175719
A6: 2018-05-01 | B6: 2410 | D6: 0.7879679581 | E6: 0.9778348491 | F6: 2464.628871 | G6: 5 | J6: R Square | K6: 0.3536889903
A7: 2018-06-01 | B7: 3592 | D7: 1.174431911 | E7: 1.113525375 | F7: 3225.79088 | G7: 6 | J7: Adjusted R Square | K7: 0.334679843
A8: 2018-07-01 | B8: 2740 | D8: 0.8958639856 | E8: 0.8565348836 | F8: 3198.93568 | G8: 7 | J8: Standard Error | K8: 274.4396129
A9: 2018-08-01 | B9: 2683.5 | D9: 0.8773908779 | E9: 0.9187381867 | F9: 2920.853883 | G9: 8 | J9: Observations | K9: 36
A10: 2018-09-01 | B10: 2697.5 | D10: 0.8819682851 | E10: 0.8797483335 | F10: 3066.2178 | G10: 9
A11: 2018-10-01 | B11: 3090 | D11: 1.010299166 | E11: 1.094046877 | F11: 2824.376235 | G11: 10 | J11: ANOVA
A12: 2018-11-01 | B12: 3342.5 | C12: Put yearly average in below cell | D12: 1.092855975 | E12: 1.230095704 | F12: 2717.26825 | G12: 11 | K12: df | L12: SS | M12: MS | N12: F | O12: Significance F
A13: 2018-12-01 | B13: 4304.5 | C13: =AVERAGE(B2:B13) -> 3058.5 | D13: 1.407389243 | E13: 1.409109328 | F13: 3054.766521 | G13: 12 | J13: Regression | K13: 1 | L13: 1401368.982 | M13: 1401368.982 | N13: 18.60625224 | O13: 0.0001307156691
A14: 2019-01-01 | B14: 2135 | D14: =B14/$C$25 -> 0.6400359739 | E14: =(D2+D14+D26)/3 -> 0.7232173544 | F14: 2952.08624 | G14: 13 | J14: Residual | K14: 34 | L14: 2560781.439 | M14: 75317.10115
A15: 2019-02-01 | B15: 2971 | D15: =B15/$C$25 -> 0.8906542757 | E15: =(D3+D15+D27)/3 -> 0.8692443158 | F15: 3417.911335 | G15: 14 | J15: Total | K15: 35 | L15: 3962150.421
A16: 2019-03-01 | B16: 2811 | D16: 0.8426890504 | E16: 0.9454447905 | F16: 2973.203754 | G16: 15
A17: 2019-04-01 | B17: 3144 | D17: 0.9425166754 | E17: 0.9824600021 | F17: 3200.130278 | G17: 16 | K17: Coefficients | L17: Standard Error | M17: t Stat | N17: P-value | O17: Lower 95% | P17: Upper 95% | Q17: Lower 95.0% | R17: Upper 95.0%
A18: 2019-05-01 | B18: 3464.5 | D18: 1.038597017 | E18: 0.9778348491 | F18: 3543.031835 | G18: 17 | J18: Intercept | K18: 2975.074526 | L18: 93.41958926 | M18: 31.84636701 | N18: 6.720757113e-27 | O18: 2785.223079 | P18: 3164.925973 | Q18: 2785.223079 | R18: 3164.925973
A19: 2019-06-01 | B19: 3609.5 | D19: 1.082065503 | E19: 1.113525375 | F19: 3241.506732 | G19: 18 | J19: Time period | K19: 18.99243893 | L19: 4.403026371 | M19: 4.313496521 | N19: 0.0001307156691 | O19: 10.04441277 | P19: 27.9404651 | Q19: 10.04441277 | R19: 27.9404651
A20: 2019-07-01 | B20: 2770 | D20: 0.8303979615 | E20: 0.8565348836 | F20: 3233.960523 | G20: 19
A21: 2019-08-01 | B21: 3077 | D21: 0.9224312374 | E21: 0.9187381867 | F21: 3349.15871 | G21: 20
A22: 2019-09-01 | B22: 3064 | D22: 0.9185340628 | E22: 0.8797483335 | F22: 3482.814213 | G22: 21
A23: 2019-10-01 | B23: 3744 | D23: 1.12238627 | E23: 1.094046877 | F23: 3422.156836 | G23: 22
A24: 2019-11-01 | B24: 4253.5 | C24: Put yearly average in below cell | D24: 1.275125534 | E24: 1.230095704 | F24: 3457.861033 | G24: 23
A25: 2019-12-01 | B25: 4985.5 | C25: =AVERAGE(B14:B25) -> 3335.75 | D25: 1.494566439 | E25: 1.409109328 | F25: 3538.050526 | G25: 24
A26: 2020-01-01 | B26: 2584 | D26: =B26/$C$37 -> 0.7203958832 | E26: =(D2+D14+D26)/3 -> 0.7232173544 | F26: 3572.923111 | G26: 25
A27: 2020-02-01 | B27: 3033 | D27: =B27/$C$37 -> 0.8455730316 | E27: =(D3+D15+D27)/3 -> 0.8692443158 | F27: 3489.237657 | G27: 26
A28: 2020-03-01 | B28: 2932 | D28: 0.817415143 | E28: 0.9454447905 | F28: 3101.185843 | G28: 27
A29: 2020-04-01 | B29: 3551 | D29: 0.9899867574 | E29: 0.9824600021 | F29: 3614.396507 | G29: 28
A30: 2020-05-01 | B30: 3970.5 | D30: 1.106939572 | E30: 0.9778348491 | F30: 4060.501631 | G30: 29
A31: 2020-06-01 | B31: 3888.5 | D31: 1.084078712 | E31: 1.113525375 | F31: 3492.062315 | G31: 30
A32: 2020-07-01 | B32: 3025 | D32: 0.8433427038 | E32: 0.8565348836 | F32: 3531.67169 | G32: 31
A33: 2020-08-01 | B33: 3430.5 | D33: 0.9563924448 | E33: 0.9187381867 | F33: 3733.925562 | G33: 32
A34: 2020-09-01 | B34: 3008.5 | D34: 0.8387426527 | E34: 0.8797483335 | F34: 3419.72799 | G34: 33
A35: 2020-10-01 | B35: 4123 | D35: 1.149455196 | E35: 1.094046877 | F35: 3768.577092 | G35: 34
A36: 2020-11-01 | B36: 4743 | C36: Put yearly average in below cell | D36: 1.322305601 | E36: 1.230095704 | F36: 3855.79755 | G36: 35 | I36: Use the average seasonal Index in the column for year 2018
A37: 2020-12-01 | B37: 4754 | C37: =AVERAGE(B26:B37) -> 3586.916667 | D37: 1.325372302 | E37: 1.409109328 | F37: =B37/E37 -> 3373.762351 | G37: 36 | H37: Deseasonalized forecast | I37: Seasonalized forecast
G38: 37 | H38: =$K$18+($K$19*G38) -> 3677.794766 | I38: =H38*E2 -> 2659.845001 | J38: When you move your forecast to the profit models, you must use an equation, not just copy the values
G39: 38 | H39: =$K$18+($K$19*G39) -> 3696.787205 | I39: =H39*E3 -> 3213.411265
G40: 39 | H40: 3715.779644 | I40: 3513.064508
G41: 40 | H41: 3734.772083 | I41: 3669.264189
G42: 41 | H42: 3753.764522 | I42: 3670.561765
G43: 42 | H43: 3772.756961 | I43: 4201.060611
G44: 43 | H44: 3791.7494 | I44: 3247.765631
G45: 44 | H45: 3810.741839 | I45: 3501.074047
G46: 45 | H46: 3829.734278 | I46: 3369.202349
G47: 46 | H47: 3848.726717 | I47: 4210.687446
G48: 47 | H48: 3867.719156 | I48: 4757.664716
G49: 48 | H49: 3886.711595 | I49: =H49*E13 -> 5476.801564
Z100: Dallan Delgado
Z102: Spring 2021

Sheet Current operations Pt2 & Pt3
A1: CURRENT OPERATIONS | E1: Monthly Production | F1: Lost Sales | G1: Day old revenue | Z1: test
A2: Part 2 | Z2: Summer 2020
A3: AVERAGE DEMAND
A4: Month | B4: Jan | C4: Feb | D4: March | E4: April | F4: May | G4: June | H4: July | I4: August | J4: September | K4: October | L4: November | M4: December
A5: Demand
A6: satisfied demand
A7: Extra donuts(over)
A8: Unsatisfied customers (short)
A9: Revenue
A10: coffee
A11: donut
A12: Revenue from day old sales
A13: Total Revenue
A14: Expenses
A15: Fixed Expenses
A16: Total Fixed Expense
A18: Variable Expenses
A19: Coffee Variable expense
A20: Donut Variable expense
A21: Total Variable Expenses
A22: Expenses: due to lost sales
A23: Total Expenses
N24: Yearly Total
A25: Profit Donuts and Coffee
A27: Part 3 | B27: You should be able to copy from average to high and low and then just make some modifications
A28: HIGH DEMAND
A29: Month
A30: Demand
A31: satisfied demand
A32: Extra donuts(over)
A33: Unsatisfied customers (short)
A34: Revenue
A35: coffee
A36: donut
A37: Revenue from day old sales
A38: Total Revenue
A39: Expenses
A40: Fixed Expenses
A41: Total Fixed Expense
A43: Variable Expenses
A44: Coffee Variable expense
A45: Donut Variable expense
A46: Total Variable Expenses
A47: Expenses: due to lost sales
A48: Total Expenses
N49: Yearly Total
A50: Profit Donuts and Coffee
A52: Part 3
A53: LOW DEMAND
A54: Month
A55: Demand
A56: satisfied demand
A57: Extra donuts(over)
A58: Unsatisfied customers (short)
A59: Revenue
A60: coffee
A61: donut
A62: Revenue from day old sales
A63: Total Revenue
A64: Expenses
A65: Fixed Expenses
A66: Total Fixed Expense
A68: Variable Expenses
A69: Coffee Variable expense
A70: Donut Variable expense
A71: Total Variable Expenses
A72: Expenses: due to lost sales
A73: Total Expenses
N74: Yearly Total
A75: Profit Donuts and Coffee
Z200: Dallan Delgado
Z201: Spring 2021

Sheet Franchise operations Pt2 & Pt3
A1: FRANCHISE | E1: Monthly Production | F1: Lost Sales | G1: Day old revenue
A2: Part 2
A3: AVERAGE DEMAND
A4: Month
A5: Demand
A6: satisfied demand
A7: Extra donuts(over)
A8: Unsatisfied customers (short)
A9: Revenue
A10: coffee
A11: donut
A12: Revenue from day old sales
A13: Total Revenue
A14: Expenses
A15: Fixed Expenses
A16: Total Fixed Expense
A18: Variable Expenses
A19: Coffee Variable expense
A20: Donut Variable expense
A21: Total Variable Expenses
A22: Expenses: due to lost sales
A23: Total Expenses
N24: Yearly Total
A25: Profit Donuts and Coffee
A27: Part 3
A28: HIGH DEMAND
A29: Month
A30: Demand
A31: satisfied demand
A32: Extra donuts(over)
A33: Unsatisfied customers (short)
A34: Revenue
A35: coffee
A36: donut
A37: Revenue from day old sales
A38: Total Revenue
A39: Expenses
A40: Fixed Expenses
A41: Total Fixed Expense
A43: Variable Expenses
A44: Coffee Variable expense
A45: Donut Variable expense
A46: Total Variable Expenses
A47: Expenses: due to lost sales
A48: Total Expenses
N49: Yearly Total
A50: Profit Donuts and Coffee
A52: Part 3
A53: LOW DEMAND
A54: Month
A55: Demand
A56: satisfied demand
A57: Extra donuts(over)
A58: Unsatisfied customers (short)
A59: Revenue
A60: coffee
A61: donut
A62: Revenue from day old sales
A63: Total Revenue
A64: Expenses
A65: Fixed Expenses
A66: Total Fixed Expense
A68: Variable Expenses
A69: Coffee Variable expense
A70: Donut Variable expense
A71: Total Variable Expenses
A72: Expenses: due to lost sales
A73: Total Expenses
N74: Yearly Total
A75: Profit Donuts and Coffee

Sheet Expected Values Pt3
B1: PAYOFF TABLE
C3: State of Nature | H3: Summary of Results | I3: Methods
B4: Decision Alternatives | C4: Low | D4: Average | E4: High | H4: =B4 -> Decision Alternatives | I4: Maximin | J4: MaxiMax | K4: Laplace | L4: MinMax regret | M4: EVUII | N4: EOL
H7: Decision Alternatives
B8: DM UNDER IGNORANCE
H9: Kiana should choose to:
B10: Maximin
C11: State of Nature
B12: Decision Alternatives | C12: Low | D12: Average | E12: High | H12: Because:
B17: Maximax
C18: State of Nature
B19: Decision Alternatives | C19: Low | D19: Average | E19: High
B24: Laplace
C25: State of Nature
B26: Decision Alternatives | C26: Low | D26: Average | E26: High
B31: Minimax Regret
B32: Regret table | C32: State of Nature
B33: Decision Alternatives | C33: Low | D33: Average | E33: High
B37: DM UNDER RISK
B38: EVUII
C39: State of Nature
B40: Decision Alternatives | C40: Low | D40: Average | E40: High
B41: Probability
B46: EVUPI
C47: State of Nature
B48: Decision Alternatives | C48: Low | D48: Average | E48: High
B49: Probability
B52: EVPI
B54: EOL
B55: Regret table | C55: State of Nature
B56: Decision Alternatives | C56: Low | D56: Average | E56: High
B57: Probability

Sheet Sheet9
